Cogmind - Beta 14 --- EXPLORER MODE // 2024.08.08 @ 19:50:24 Player: LazavPhenax Result: Destroyed by 37-SML(R) with Subdweller Beam Cannon Performance ------------- Evolutions (0) 0 Regions Visited (2) 400 Robots Destroyed (41) 205 Value Destroyed (889) 889 Prototype IDs (0) 0 Alien Tech Used (0) 0 Bonus (0) 0 TOTAL SCORE: 1494 Bonus ------- None Cogmind --------- Core Integrity 0/250 Matter 44/300 Energy 80/100 System Corruption 1% Temperature Warm (118) Movement Treading (240) Ox1 Location -10/Subcaves Parts ------- > --- POWER (1) -------- (None) > --- PROPULSION (2) --- Light Treads Light Treads > --- UTILITY (3) ------ High-capacity Storage Unit Targeting Computer > --- WEAPON (2) ------- Battle Rifle > --- INVENTORY (20) --- Flight Unit Flight Unit Flight Unit Flight Unit Flight Unit Medium Storage Unit High-capacity Matter Pod (200) High-capacity Matter Pod (200) Seismic Detector Power Shielding Light Armor Plating Tractor Beam Assault Rifle Grenade Launcher Peak State ------------ > --- POWER ------------ Ion Engine > --- PROPULSION ------- Light Treads Light Treads > --- UTILITY ---------- High-capacity Storage Unit Targeting Computer Light Armor Plating > --- WEAPON ----------- EM Pulse Gun Assault Rifle > --- INVENTORY -------- Flight Unit Flight Unit Flight Unit Flight Unit Flight Unit Medium Storage Unit High-capacity Matter Pod High-capacity Matter Pod Seismic Detector Tractor Beam [Rating: 9] Favorites ----------- Power Ion Engine Engine Ion Engine Propulsion Light Treads Treads Light Treads Utility High-capacity Storage Unit Device Tractor Beam Storage High-capacity Storage Unit Processor Targeting Computer Protection Light Armor Plating Weapon Grenade Launcher Energy Gun EM Pulse Gun Ballistic Gun Assault Rifle Launcher Grenade Launcher Build | -11 -10 -10 ------- Run | Yrd Mat Sub Slots Evolved 1 | . 1 . Power . | . . . Propulsion . | . . . Utility 1 | . 1 . Weapon . | . . . Parts Attached 21 | 6 9 6 Power 2 | 1 . 1 Engine 2 | 1 . 1 Core . | . . . Reactor . | . . . Propulsion 4 | 2 2 . Treads 4 | 2 2 . Leg . | . . . Wheel . | . . . Hover . | . . . Flight . | . . . Utility 7 | 2 4 1 Device 1 | . 1 . Storage 2 | 1 1 . Processor 1 | . 1 . Hackware . | . . . Protection 3 | 1 1 1 Artifact . | . . . Weapon 8 | 1 3 4 Energy Gun 2 | 1 . 1 Energy Cannon . | . . . Ballistic Gun 3 | . 1 2 Ballistic Cannon . | . . . Launcher 3 | . 2 1 Special Weapon . | . . . Impact Weapon . | . . . Slashing Weapon . | . . . Piercing Weapon . | . . . Special Melee Weapon . | . . . Unidentified Prototypes . | . . . Parts Lost 6 | . . 6 Power 2 | . . 2 Propulsion . | . . . Utility 1 | . . 1 Weapon 3 | . . 3 Highest Loss Streak 4 | . . 4 To Critical Strikes . | . . . Average Slot Usage (%) 92 | . 93 91 Engine 9 | . 12 5 Treads 24 | . 24 25 Device 3 | . 4 . Storage 12 | . 12 12 Processor 10 | . 10 12 Protection 8 | . 7 11 Energy Gun 6 | . 5 9 Ballistic Gun 1 | . 2 . Launcher 14 | . 14 13 Peak Build Rating 9 | 6 9 9 Average Rating 8 | 4 8 8 On Entrance 5 | . 6 9 Naked Turns . | . . . Heaviest Build 54 | 20 54 54 Greatest Support 40 | 40 40 40 Greatest Overweight (x) 2 | . 2 1 Average Overweight (x) . | . 1 1 Largest Inventory Capacity 20 | 10 20 20 Average Capacity 19 | 7 19 20 Most Carried 16 | 2 15 16 Average Carried 11 | 1 10 14 Final Capacity 20 | 10 20 20 Final Carried 15 | 2 15 14 Class Distribution -------------------- 100% | Hacker-Mutant Dominant Class ---------------- Hacker-Mutant | -10/Materials Hacker-Mutant | -10/Subcaves Resources | -11 -10 -10 ----------- Run | Yrd Mat Sub Matter Collected 1111 | 260 713 138 Remotely 181 | . 181 . Salvage Created 1292 | 94 998 200 Parts 79 | 5 64 10 Haulers Intercepted 2 | . 2 . Recyclers Shooed 2 | . 2 . Parts Field Recycled . | . . . Retrieved Matter . | . . . Parts Self-Destructed . | . . . Prevented . | . . . Kills | -11 -10 -10 ------- Run | Yrd Mat Sub Combat Hostiles Destroyed 28 | . 18 10 Guns 13 | . 10 3 AOE 14 | . 7 7 Classes Destroyed 9 | 2 5 2 Builder 1 | . 1 . Tunneler 1 | 1 . . Hauler 2 | . 2 . Recycler 4 | 1 3 . Turret 2 | . . 2 Watcher 3 | . 3 . Swarmer 12 | . 6 6 Grunt 12 | . 12 . Subdweller 4 | . . 4 Best Kill Streak 6 | 2 4 6 Combat Bots Only 4 | . 3 4 Max Kills in Single Turn 2 | 1 2 2 Gunslinging . | . . . Exploded 2 | . 2 2 Melee . | . . . Uniques/NPCs Destroyed . | . . . Combat | -11 -10 -10 -------- Run | Yrd Mat Sub Hostile Shots Fired 135 | . 48 87 Missed 58 | . 22 36 Damage Taken 1059 | . 220 839 Core 267 | . 22 245 Absorbed by Shields . | . . . Ignored by Resistances 488 | . 145 343 Regen/Repaired (Parts) 106 | . 106 . Core Remaining (%) 100 | 100 . . Volleys Fired 116 | 2 58 56 Largest 2 | 1 2 2 Hottest 60 | 40 60 60 Shots Fired 146 | 2 82 62 Gun 93 | 2 64 27 Cannon . | . . . Launcher 53 | . 18 35 Special . | . . . Kinetic 17 | . 15 2 Thermal . | . . . Explosive 53 | . 18 35 Electromagnetic 76 | 2 49 25 Robot Hit Streak 46 | 2 12 46 Robot Miss Streak 1 | . 1 . Penetration Max . | . . . Secondary Targets 1 | . 1 . Max Gunslinging Chain 1 | . 1 . Shots Hit Robots 93 | 2 57 34 Core Hits 60 | 2 35 23 Critical Kills . | . . . Critical Parts Destroyed . | . . . Critical Strikes 3 | . 2 1 Corrupt 3 | . 2 1 Melee Attacks . | . . . Impact . | . . . Slashing . | . . . Piercing . | . . . Sneak Attacks . | . . . Combat Hostiles . | . . . Follow-up Attacks . | . . . Damage Inflicted 2672 | 27 1301 1344 Guns 1025 | 27 724 274 Cannons . | . . . Explosions 1626 | . 556 1070 Melee . | . . . Ramming 21 | . 21 . Kinetic 140 | . 106 34 Thermal 92 | . 92 . Explosive 1534 | . 464 1070 Electromagnetic 885 | 27 618 240 Impact . | . . . Slashing . | . . . Piercing . | . . . Highest Corruption 1 | . 1 1 Average Corruption 1 | . 1 1 Corruption Purged . | . . . Corruption Blocked . | . . . Effects 8 | . 2 6 Message Errors 4 | . 1 3 Matter Fused 2 | . 1 1 Heat Flow Errors 2 | . . 2 Overload Shots . | . . . Overflow Damage 26 | . 10 16 Projectiles . | . . . Explosions 26 | . 10 16 Melee . | . . . Knockbacks . | . . . Impact . | . . . Kinetic . | . . . Secondary . | . . . Self-Inflicted Damage 118 | . 64 54 Shots 9 | . 4 5 Rammed 3 | . 3 . Targets Rammed 3 | . 3 . Kicked . | . . . Crushed . | . . . Highest Temperature 230 | 12 72 230 Average Temperature 29 | 7 23 110 Received Heat Transfer 491 | . 48 443 Siege Activations . | . . . Robots Corrupted 1 | . 1 . Combat Hostiles 1 | . 1 . Parts Fried 4 | . 3 1 Impact Corruptions . | . . . Robots Melted . | . . . Combat Hostiles . | . . . Parts Melted . | . . . Heat Transferred 100 | . 100 . Parts Sabotaged . | . . . Parts Stolen . | . . . Parts Stripped . | . . . Power Chain Reactions 1 | . 1 . Alert | -11 -10 -10 ------- Run | Yrd Mat Sub Peak Influence 212 | 10 212 . Initial 4 | . 4 . Average 76 | 7 78 . Maximum Alert Level 1 | . 1 . Low Security (%) 91 | 100 91 . Level 1 8 | . 8 . Level 2 . | . . . Level 3 . | . . . Level 4 . | . . . Level 5 . | . . . High Security . | . . . Max Security . | . . . Squads Dispatched 3 | . 3 . Investigation 3 | . 3 . Extermination . | . . . Reinforcement . | . . . Assault . | . . . Garrison . | . . . Intercept . | . . . Searches Triggered . | . . . Construction Impeded . | . . . Haulers Reinforced . | . . . Active Scanning Responses . | . . . Cargo Convoy Interrupts . | . . . Stealth | -11 -10 -10 --------- Run | Yrd Mat Sub Distress Signals 1 | . 1 . Communications Jammed . | . . . Distress Signals . | . . . Times Spotted 46 | . 20 26 Peak Tracking Total 5 | . 3 5 Tactical Retreats 2 | . . 2 Traps | -11 -10 -10 ------- Run | Yrd Mat Sub Traps Triggered 5 | . 5 . Indirectly . | . . . Trap Hack Attempts . | . . . Triggered . | . . . Disarmed . | . . . Reprogrammed 3 | . 3 . Reused 3 | . 3 . Traps Extracted . | . . . Installed . | . . . Triggered 3 | . 3 . Machines | -11 -10 -10 ---------- Run | Yrd Mat Sub Machines Disabled 5 | . 4 1 Max in Single Turn 1 | . 1 1 Machines Repaired . | . . . Machines Dismantled . | . . . Machines Sabotaged . | . . . Overloaded Fab Kills . | . . . Hacking | -11 -10 -10 --------- Run | Yrd Mat Sub Machines Accessed 11 | . 11 . Terminals 8 | . 8 . Fabricators . | . . . Repair Stations 1 | . 1 . Recycling Units 2 | . 2 . Scanalyzers . | . . . Garrison Access . | . . . Total Hacks 26 | . 26 . Successful 24 | . 24 . Failed 2 | . 2 . Catastrophic . | . . . Database Lockouts . | . . . Manual 19 | . 19 . Terminals 14 | . 14 . Fabricators . | . . . Repair Stations 6 | . 6 . Recycling Units 6 | . 6 . Scanalyzers . | . . . Garrison Access . | . . . Terminal Hacks 5 | . 5 . Robot Analysis 3 | . 3 . Locate Traps 1 | . 1 . Reprogram Traps 1 | . 1 . Fabricator Hacks . | . . . Repair Station Hacks 6 | . 6 . Scan Component 3 | . 3 . Repair 3 | . 3 . Recycling Unit Hacks 1 | . 1 . Retrieve Components 1 | . 1 . Scanalyzer . | . . . Garrison Access Hacks . | . . . Unauthorized Hacks 12 | . 12 . Terminals 8 | . 8 . Botnet 8 | . 8 . Fabricators . | . . . Repair Stations . | . . . Recycling Units 4 | . 4 . Reject 2 | . 2 . Mask 2 | . 2 . Scanalyzers . | . . . Garrison Access . | . . . Data Cores Recovered . | . . . Used . | . . . Hacking Detections 6 | . 6 . Full Trace Events 3 | . 3 . Feedback Events . | . . . Feedback Blocked . | . . . Robot Schematics Acquired . | . . . Robots Built . | . . . Authchips . | . . . Time . | . . . Total Robot Build Rating . | . . . Part Schematics Acquired . | . . . Parts Built . | . . . Authchips . | . . . Time . | . . . Total Part Build Rating . | . . . Parts Repaired 3 | . 3 . Time 78 | . 78 . Parts Recycled . | . . . Recycled Matter . | . . . Retrieved Matter . | . . . Retrieved Components 6 | . 6 . Parts Scanalyzed . | . . . Part Schematics Acquired . | . . . Parts Damaged . | . . . Bothacking | -11 -10 -10 ------------ Run | Yrd Mat Sub Used RIF Installer . | . . . Robots Hacked . | . . . Non-combat . | . . . Combat . | . . . Robot Hacks Applied . | . . . Relay Couplers Released . | . . . Fabnet Peak Effective % . | . . . Robots Rewired . | . . . Allies Hacked . | . . . Hacks Repelled . | . . . Allies | -11 -10 -10 -------- Run | Yrd Mat Sub Total Allies . | . . . Largest Group . | . . . Highest-Rated Group . | . . . Highest-Rated Ally . | . . . Total Orders . | . . . Ally Attacks . | . . . Total Damage . | . . . Kills . | . . . Allies Corrupted . | . . . Allies Melted . | . . . Intel | -11 -10 -10 ------- Run | Yrd Mat Sub Robot Analysis Total 3 | . 3 . Derelict Logs Recovered . | . . . Drone Launches . | . . . Drone Recoveries . | . . . Exploration | -11 -10 -10 ------------- Run | Yrd Mat Sub Turns Passed 3101 | 70 2070 961 Spaces Moved 1097 | 38 711 348 Core 5 | 5 . . Treads 1092 | 33 711 348 Legs . | . . . Wheels . | . . . Hover . | . . . Flight . | . . . Fastest Speed 50 | 50 160 240 Average Speed 237 | 145 240 240 Slowest Speed 320 | 160 320 240 Overloaded Moves . | . . . Propulsion Burnouts . | . . . Robots Hopped . | . . . Cave-ins Triggered 1 | . . 1 Exploration Rate (%) 40 | 3 96 23 Regions Visited 2 Branch Regions 1 Pre-discovered Areas . | . . . Known Exits Taken 2 | 1 1 . Unknown Exits Taken . | . . . Scrap Searched . | . . . Spaces Dug 27 | . . 27 Terrain Destroyed 338 | . 114 224 Melee . | . . . Projectile . | . . . AOE 338 | . 114 224 Terrain Rammed . | . . . Walls Destroyed . | . . . Machines Disabled . | . . . Actions | -11 -10 -10 --------- Run | Yrd Mat Sub Total 1444 | 48 983 413 Wait 185 | . 185 . Move 1095 | 37 710 348 Hop . | . . . Pick Up 17 | 3 14 . Fast Attach 11 | 5 4 2 Attach 10 | 1 5 4 Detach 7 | . 4 3 Swap . | . . . Drop . | . . . Fire 116 | 2 58 56 Melee . | . . . Ram . | . . . Kick . | . . . Crush 3 | . 3 . Escape Stasis . | . . . Rewire . | . . . Trap . | . . . Miscellaneous . | . . . Route ------- -11/Scrapyard -10/Materials (discovered 6 exits: *Mat x3 / *Min x2 / *Sub) -10/Subcaves (discovered 2 exits: *Mat / *Rec) History --------- Turn | Location | Event 3 | -11/Scrapyard | Identified exit to Materials 3 | -11/Scrapyard | Discovered exit to Materials (range 15) 71 | -11/Scrapyard | Entered Materials 71 | -10/Materials | Evolved 1 slot: Utility x1 247 | -10/Materials | Identified exit to Mines 247 | -10/Materials | Discovered exit to Mines (range 15) 271 | -10/Materials | Discovered exit to Mines (range 13) 300 | -10/Materials | Build established: Hacker-Mutant 692 | -10/Materials | Identified exit to Materials 692 | -10/Materials | Discovered exit to Materials (range 16) 1039 | -10/Materials | Discovered exit to Materials (range 16) 1204 | -10/Materials | Repaired Lgt. Armor Plating 1232 | -10/Materials | Repaired Lgt. Treads 1259 | -10/Materials | Repaired Lgt. Treads 1721 | -10/Materials | Discovered exit to Materials (range 16) 1839 | -10/Materials | Identified exit to Subcaves 1839 | -10/Materials | Discovered exit to Subcaves (range 9) 2141 | -10/Materials | Entered Subcaves 2251 | -10/Subcaves | Shifting Twisted Machinery released Battle Rifle 2297 | -10/Subcaves | A swath of the cavern ceiling suddenly collapsed 2349 | -10/Subcaves | Ambushed by Subdweller buried in earth 2352 | -10/Subcaves | Ambushed by Subdweller buried in earth 2383 | -10/Subcaves | Crushed by falling debris 2383 | -10/Subcaves | Core integrity fell below 50% 2872 | -10/Subcaves | Core integrity fell below 20% 2873 | -10/Subcaves | Identified exit to Materials 2873 | -10/Subcaves | Discovered exit to Materials (range 13) 2879 | -10/Subcaves | Identified exit to Recycling 2879 | -10/Subcaves | Discovered exit to Recycling (range 10) 3051 | -10/Subcaves | Ambushed by Subdweller buried in earth 3072 | -10/Subcaves | Ambushed by Subdweller buried in earth 3102 | -10/Subcaves | Destroyed by 37-SML(R) with Subdweller Beam Cannon Last Messages --------------- 02923_ Acquired 30 matter. 02929_ Subatomizers dissect the Lgt. Ion Engine. 02932_ Acquired 28 matter. 02937_ Acquired 8 matter. 02949_ The unstable cave ceiling collapses. 03052_ PJ-XM0(R): "ARGHSUB!" 03057_ PJ-XM0(R) destroyed. 03057_ FR-AHL(R) destroyed. 03061_ The unstable cave ceiling collapses. 03073_ 3M-O1N(R): "ARGHSUB!" 03077_ 6P-IPH(R) affixes Scrap Shield Fragment to Scrap Shield. 03079_ The unstable cave ceiling collapses. 03080_ Lgt. Ion Engine destroyed. 03083_ The unstable cave ceiling collapses. 03086_ 3M-O1N(R) affixes Scrap Shield Fragment to Scrap Shield. 03089_ The unstable cave ceiling collapses. 03093_ Lgt. Armor Plating destroyed. 03097_ EM Pulse Gun destroyed. 03099_ Grenade Launcher destroyed. 03099_ Critical hit (Meltdown: +170). Map ----- +----------------------------------------------------+ | ?????????????????????????????????????????????????? | | ?????????????????????????????????????????????????? | | ?????????????????????????????????????????????????? | | ?????????????????????????????????????????????????? | | ?????????????????????????????????????????????????? | | ?????????????????????????????????????????????????? | | ?????????????????????????????????????????????????? | | ?????????????????????????????????????????????????? | | ?????????????????????????????????????????????????? | | ?????????????????????????????????????????????????? | | ?????????????????????????????????????????????????? | | ?????????????????????????????????????????????????? | | ?????????????????????????????????????????????????? | | ?????????????????????????????????????????????????? | | ?????????????????????????????????????????????????? | | ?????????????????????????????????????????????????? | | ?????????????????????????????????????????????????? | | ???????????????????????#####?????????????????????? | | ??????????????????####?#; ##????????????????????? | | ??????????????????# ### ;????????????????????? | | ??????????????##### ## ###??????????????????? | | ??????????????# ## ## #??????????????????? | | #####????????## &##?????????????????? | | * #????????# #?????????????????? | | #????????## #?????????????????? | | #######??## @ #?????????????????? | | # #### ####?????????????????? | | ###### #????????????????????? | | [ # ##????# #????????????????????? | | # ## #???###RRR ###??????????????????? | | # # ## ##??# " #??????????????????? | | < #?# #?????????????????? | | " #?## #????????????????? | | #### #??# % #????????????????? | | # ## #??# # # #????????????????? | | ### #??# R# " #????????????????? | | ### ####??# # " ???????????????? | | ## #?????## ??????????????? | | ### ##??????## ?????????????? | | ##?# #????????### ????????????? | | #??### ??????????? ## " ???????????? | | #????? ?????????? ? #?#????????????? | | ##????? ??????????? ? ? #??????????????? | | ##?????#??????????? ?? ?????????????????? | | ## #????????????????? #????????????????????? | | ## #????????????????? #?????????????????????? | | ### ##????????????????????????????????????????? | | ##?# #????????????????????????????????????????? | | ???## ##????????????????????????????????????????? | | #??# # #?????????????????????????????????????????? | +----------------------------------------------------+ Best States ------------- Heat Dissipation 25 Energy Generation 10 Energy Capacity 250 Matter Stores 300 Matter Capacity 300 Sight Range 16 Terrain Scan Density 10 Armor Coverage 150 Resistance: KI 35 Resistance: TH 35 Resistance: EX 35 Resistance: EM 35 Resistance: I 35 Resistance: S 35 Resistance: P 35 Evasion (%) 40 Targeting Accuracy 5 Recoil Reduction 2 Offensive Hacking 20 Item Schematics ----------------- None Robot Schematics ------------------ None Fabricated ------------ Nothing Alien Tech Used ----------------- None Achievements -------------- None Challenges ------------ None Game ------ Seed GhostWeldingMicroactuators Manual? 0 Play Time 00:20:29 Cumulative 22.7 hours Start 2024.08.08 @ 06:36:59 End 2024.08.08 @ 19:50:24 Sessions 3 Manual Loads 0 Difficulty Explorer Special Mode None Game No. 17 Rogue 0 Adventurer 0 Explorer 17 Win Type - Total 1 Types 1/0/0/0/0/0/0/0/0 Lore% 8 Gallery% 28 Achievement% 24 Wizard Run 0 Options --------- Layout 0 ASCII 0 Keyboard 0 Movement Mouse Keybinds 0 Fullscreen 1 Font 18/X11Bold Map View 76x50 Zoom Use 0% Tactical HUD 1 Map Filters NONE Filters NONE Steam 1 RUN: dc395be0-0204-4804-b314-71183be406a3